bitfinex/quotes_BTCUSD_20241003
["timestamp","ask_amount","ask_price","bid_price","bid_amount"]
[1727989334509,0.002,60867.0,60863.0,0.000818]
[1727989334738,0.28033715,60864.0,60863.0,0.000818]
[1727989334943,0.2805396,60864.0,60863.0,0.000818]
[1727989335207,0.32695106,60864.0,60863.0,0.000818]
[1727989337233,0.34360123,60864.0,60863.0,0.000818]
[1727989337477,0.34360369,60864.0,60863.0,0.000818]
[1727989337710,0.34960369,60864.0,60863.0,0.000818]
[1727989337927,0.34958854,60864.0,60863.0,0.000818]
[1727989338160,0.35358854,60864.0,60863.0,0.000818]
[1727989339555,0.35358854,60864.0,60852.0,0.000819]
[1727989339556,0.328626,60860.0,60852.0,0.000819]
[1727989339800,0.164323,60856.0,60852.0,0.000819]
[1727989340033,0.164323,60856.0,60855.0,0.00816203]
[1727989340768,0.164323,60856.0,60852.0,0.165151]
[1727989341008,0.19008326,60856.0,60855.0,0.00816203]
[1727989341208,0.19008326,60856.0,60854.0,0.001]
[1727989341470,0.19008326,60856.0,60855.0,0.00816203]
[1727989341671,0.20760527,60856.0,60855.0,0.00916203]
[1727989341959,0.20760527,60856.0,60855.0,0.001]
[1727989342210,0.01752201,60856.0,60855.0,0.18566203]
[1727989342469,0.18184401,60856.0,60855.0,0.18566203]
[1727989343402,0.18184401,60856.0,60855.0,0.18666203]
[1727989344160,0.01752201,60856.0,60855.0,0.18666203]
[1727989344424,0.03418461,60856.0,60855.0,0.18666203]
[1727989344650,0.03418461,60856.0,60855.0,0.18966203]
[1727989344875,0.03418461,60856.0,60855.0,0.18766203]
[1727989345116,0.03518461,60856.0,60855.0,0.18966203]
[1727989345343,0.06094461,60856.0,60855.0,0.18666203]
[1727989345570,0.06094461,60856.0,60855.0,0.18966203]
[1727989345868,0.06094461,60856.0,60855.0,0.35398703]
[1727989346418,0.03518461,60856.0,60855.0,0.35398703]
[1727989346903,0.03518461,60856.0,60855.0,0.19048003]
[1727989347407,0.19950661,60856.0,60855.0,0.19048003]
[1727989347677,0.01852201,60856.0,60855.0,0.35480503]
[1727989347917,0.0352919,60856.0,60855.0,0.19048003]
[1727989348171,0.1996139,60856.0,60855.0,0.19048003]
[1727989350429,0.18284401,60856.0,60855.0,0.19048003]
[1727989350671,0.1996748,60856.0,60855.0,0.19048003]
[1727989351365,0.1996748,60856.0,60855.0,0.11308003]
[1727989354027,0.22543531,60856.0,60855.0,0.11308003]
[1727989354952,0.1996748,60856.0,60855.0,0.11308003]
[1727989355682,0.1996748,60856.0,60855.0,0.005818]
[1727989357086,0.1986748,60856.0,60855.0,0.003818]
[1727989357329,0.1986748,60856.0,60855.0,0.002818]
[1727989357573,0.1986748,60856.0,60855.0,0.004818]
[1727989358031,0.22443633,60856.0,60855.0,0.004818]
[1727989359030,0.1986748,60856.0,60855.0,0.004818]
[1727989360237,0.42713118,60856.0,60855.0,0.004818]
[1727989360476,0.26433,60853.0,60852.0,0.000819]
[1727989360738,0.30088532,60853.0,60852.0,0.000819]
[1727989361419,0.37114948,60853.0,60852.0,0.000819]
[1727989361908,0.37314948,60853.0,60852.0,0.000819]
[1727989362160,0.37714948,60853.0,60852.0,0.000819]
[1727989362409,0.39691227,60853.0,60852.0,0.000819]
[1727989362664,0.5597812,60853.0,60852.0,0.000819]
[1727989363594,0.70436402,60853.0,60852.0,0.000819]
[1727989364515,0.70630458,60853.0,60852.0,0.000819]
[1727989364743,0.55983569,60853.0,60852.0,0.000819]
[1727989365727,0.70630458,60853.0,60852.0,0.000819]
[1727989366429,0.88982234,60853.0,60852.0,0.000819]
[1727989366654,0.5340729,60853.0,60852.0,0.000819]
[1727989367118,0.51718762,60853.0,60852.0,0.000819]
[1727989367351,0.53408077,60853.0,60852.0,0.000819]
[1727989367570,0.68056147,60853.0,60852.0,0.000819]
[1727989368246,0.86406742,60853.0,60852.0,0.000819]
[1727989368475,0.53408077,60853.0,60852.0,0.000819]
[1727989369909,0.5429502,60853.0,60852.0,0.000819]
[1727989370152,0.5598505,60853.0,60852.0,0.000819]
[1727989370899,0.62139639,60853.0,60852.0,0.000819]
[1727989371147,0.92562046,60853.0,60852.0,0.000819]
[1727989371398,0.5965219,60853.0,60852.0,0.000819]
[1727989371908,0.92895156,60853.0,60852.0,0.000819]
[1727989372397,0.164338,60850.0,60849.0,0.000819]
[1727989372647,0.43538909,60850.0,60849.0,0.000819]
[1727989373407,0.4353921,60850.0,60849.0,0.000819]
[1727989373905,0.4373921,60850.0,60849.0,0.000819]
[1727989374368,0.726342,60850.0,60849.0,0.000819]
[1727989374857,1.05677166,60850.0,60849.0,0.000819]
[1727989375120,1.10526822,60850.0,60849.0,0.000819]
[1727989375588,1.07950503,60850.0,60849.0,0.000819]
[1727989376079,1.08550503,60850.0,60849.0,0.000819]
[1727989376615,1.08445641,60850.0,60849.0,0.000819]
[1727989376862,0.166354,60844.0,60843.0,0.001636]
[1727989377108,0.88989032,60844.0,60843.0,0.24800008]
[1727989377371,0.9383659,60844.0,60843.0,0.001636]
[1727989377617,1.10386479,60844.0,60843.0,0.001636]
[1727989377858,1.2670515,60844.0,60843.0,0.001636]
[1727989378099,1.10386479,60844.0,60843.0,0.001636]
[1727989378347,1.27969716,60844.0,60843.0,0.001636]
[1727989379115,1.27530577,60844.0,60843.0,0.001636]
[1727989379368,1.23883019,60844.0,60843.0,0.001636]
[1727989379593,0.49893837,60844.0,60843.0,0.001636]
[1727989379858,0.29609129,60844.0,60843.0,0.001636]
[1727989380112,0.87584017,60844.0,60843.0,0.001636]
[1727989380342,0.85904925,60844.0,60843.0,0.001636]
[1727989380569,0.87204925,60844.0,60843.0,0.001636]
[1727989381065,0.88885136,60844.0,60843.0,0.001636]
[1727989381584,0.88685136,60844.0,60843.0,0.001636]
[1727989382293,0.91261359,60844.0,60843.0,0.001636]
[1727989382520,0.35065563,60844.0,60843.0,0.001636]
[1727989382755,0.33865563,60844.0,60843.0,0.001636]
[1727989382984,0.33765563,60844.0,60843.0,0.001636]
[1727989383205,0.35065563,60844.0,60843.0,0.001636]
[1727989383440,0.33865563,60844.0,60843.0,0.001636]
[1727989383671,0.32565563,60844.0,60843.0,0.001636]
[1727989383900,0.34065563,60844.0,60843.0,0.001636]
[1727989384453,0.67901963,60844.0,60843.0,0.001636]
[1727989385113,0.68101963,60844.0,60843.0,0.001636]
[1727989385330,0.52964557,60844.0,60843.0,0.001636]
[1727989385969,0.5296886,60844.0,60843.0,0.001636]
[1727989386185,0.5216886,60844.0,60843.0,0.001636]
[1727989386413,0.50292179,60844.0,60843.0,0.001636]
[1727989386652,0.51392179,60844.0,60843.0,0.001636]
[1727989386878,0.67222347,60844.0,60843.0,0.001636]
[1727989387071,0.66122347,60844.0,60843.0,0.001636]
[1727989387557,0.67322347,60844.0,60843.0,0.001636]
[1727989388306,0.72164611,60844.0,60843.0,0.001636]
[1727989389708,0.74741515,60844.0,60843.0,0.001636]
[1727989389930,0.75241515,60844.0,60843.0,0.001636]
[1727989390401,0.171368,60839.0,60837.0,0.000818]
[1727989390670,0.61810128,60839.0,60837.0,0.000818]
[1727989390917,0.64110128,60839.0,60838.0,0.00782183]
[1727989391176,0.34503875,60838.0,60837.0,8.3e-07]
[1727989391409,0.34503875,60838.0,60823.0,0.24636408]
[1727989391410,0.600146,60834.0,60833.0,0.24636408]
[1727989391653,0.600146,60834.0,60823.0,0.24636408]
[1727989391654,0.002,60827.0,60823.0,0.24636408]
[1727989391940,0.55702915,60827.0,60824.0,0.24800008]
[1727989392137,0.85728682,60827.0,60826.0,0.00869771]
[1727989392373,0.294422,60819.0,60818.0,0.000818]
[1727989392602,0.341643,60811.0,60810.0,0.000819]
[1727989392879,0.79102942,60811.0,60810.0,0.000819]
[1727989393106,0.9757281,60811.0,60810.0,0.000819]
[1727989393334,0.171465,60803.0,60802.0,0.000819]
[1727989393565,0.49501551,60803.0,60802.0,0.000819]
[1727989393795,0.81496087,60803.0,60802.0,0.000819]
[1727989394051,0.71973397,60803.0,60802.0,0.000819]
[1727989394283,0.88292068,60803.0,60802.0,0.000819]
[1727989394561,0.49301551,60803.0,60802.0,0.000819]
[1727989394792,0.164495,60792.0,60786.0,0.164511]
[1727989395040,0.14321597,60791.0,60786.0,0.164511]
[1727989395266,0.01684592,60790.0,60785.0,0.1692]
[1727989395503,0.02651009,60789.0,60787.0,0.164508]
[1727989395728,0.04334207,60789.0,60787.0,0.164508]
[1727989396485,0.02651009,60789.0,60788.0,0.165324]
[1727989396964,0.02651009,60789.0,60788.0,0.334524]
[1727989397209,0.0168412,60791.0,60790.0,0.1645]
[1727989397436,0.0168412,60791.0,60790.0,0.2556]
[1727989398120,0.0168412,60791.0,60790.0,0.3327]
[1727989399495,0.04262679,60791.0,60790.0,0.3327]
[1727989399723,0.04262679,60791.0,60790.0,0.1682]
[1727989399996,0.02578559,60791.0,60790.0,0.3327]
[1727989400248,0.02678559,60791.0,60790.0,0.3327]
[1727989400708,0.001,60791.0,60790.0,0.3357]
[1727989400936,0.002,60791.0,60790.0,0.3357]
[1727989401672,0.001,60791.0,60790.0,0.3357]
[1727989402115,0.164485,60796.0,60792.0,0.164494]
[1727989402339,0.16418088,60796.0,60792.0,0.164494]
[1727989402827,0.16330776,60796.0,60792.0,0.164494]
[1727989403271,0.0170718,60795.0,60792.0,0.164494]
[1727989403557,0.001,60796.0,60790.0,0.1682]
[1727989403798,0.04285977,60795.0,60792.0,0.164494]
[1727989404047,0.02578543,60795.0,60790.0,0.1682]
[1727989404284,0.19027243,60795.0,60792.0,0.164494]
[1727989404521,0.02578543,60795.0,60792.0,0.164494]
[1727989404747,0.02578543,60795.0,60792.0,0.164495]
[1727989405213,0.02578543,60795.0,60790.0,0.1682]
[1727989405454,0.164498,60792.0,60790.0,0.1682]
[1727989406403,0.41086208,60791.0,60790.0,0.1682]
[1727989406639,0.18156934,60791.0,60790.0,0.1682]
[1727989407108,0.164498,60791.0,60790.0,0.1692]
[1727989407391,0.18159455,60791.0,60790.0,0.1692]
[1727989408540,0.18323455,60791.0,60790.0,0.1682]
[1727989408768,0.18423455,60791.0,60790.0,0.1682]
[1727989408996,0.18423455,60791.0,60790.0,0.1692]
[1727989409699,0.01973655,60791.0,60790.0,0.3337]
[1727989410011,0.0455233,60791.0,60790.0,0.3337]
[1727989410606,0.02842675,60791.0,60790.0,0.3337]
[1727989411064,0.00264,60791.0,60790.0,0.3337]
[1727989417717,0.01981216,60791.0,60790.0,0.3337]
[1727989418395,0.01981216,60791.0,60790.0,0.3567]
[1727989418630,0.01983843,60791.0,60790.0,0.3567]
[1727989419805,0.24636408,60805.0,60804.0,0.331562]
[1727989420273,0.27214629,60805.0,60804.0,0.331562]
[1727989420490,0.02578221,60805.0,60804.0,0.331562]
[1727989420959,0.1,60808.0,60797.0,0.49606]
[1727989421210,0.01,60805.0,60799.0,0.164474]
[1727989421433,0.164472,60801.0,60797.0,0.1671]
[1727989421679,0.164475,60800.0,60797.0,0.1671]
[1727989421902,0.164471,60801.0,60797.0,0.331579]
[1727989422134,0.164471,60801.0,60798.0,0.164478]
[1727989423067,0.32894,60802.0,60797.0,0.1671]
[1727989423068,0.164478,60799.0,60797.0,0.1671]
[1727989423294,0.164471,60801.0,60798.0,0.164478]
[1727989423746,0.164471,60801.0,60797.0,0.1671]
[1727989423747,0.164479,60799.0,60797.0,0.1671]
[1727989423977,0.164479,60798.0,60797.0,0.1671]
[1727989424478,0.004,60800.0,60797.0,0.1671]
[1727989424699,0.164479,60798.0,60797.0,0.1671]
[1727989425406,0.19426251,60798.0,60797.0,0.1671]
[1727989425633,0.02978351,60798.0,60797.0,0.1671]
[1727989425858,0.19426251,60798.0,60797.0,0.1671]
[1727989426381,0.19426251,60798.0,60790.0,0.09142]
[1727989426382,0.328981,60794.0,60790.0,0.09142]
[1727989426641,0.164498,60791.0,60790.0,0.00082]
[1727989427398,0.51086208,60791.0,60790.0,0.00082]
[1727989427618,0.166503,60789.0,60788.0,0.000818]
[1727989427843,0.89461236,60789.0,60788.0,0.000818]
[1727989428352,0.70762242,60789.0,60788.0,0.000818]
[1727989428804,0.55443571,60789.0,60788.0,0.000818]
[1727989429307,0.61726107,60789.0,60788.0,0.000818]
[1727989429556,0.62905477,60789.0,60788.0,0.000818]
[1727989429788,0.53174106,60789.0,60788.0,0.000818]
[1727989430013,0.64138142,60789.0,60788.0,0.000818]
[1727989430241,0.53374106,60789.0,60788.0,0.000818]
[1727989430488,0.65538142,60789.0,60788.0,0.000818]
[1727989430735,0.61558914,60789.0,60788.0,0.000818]
[1727989430986,0.80577585,60789.0,60788.0,0.000818]
[1727989431222,0.62858914,60789.0,60788.0,0.000818]
[1727989431444,0.59130728,60789.0,60788.0,0.000818]
[1727989431680,0.52517967,60789.0,60788.0,0.000818]
[1727989431937,0.52417967,60789.0,60788.0,0.000818]
[1727989432156,0.53817967,60789.0,60788.0,0.000818]
[1727989432374,0.68736638,60789.0,60788.0,0.000818]
[1727989432601,0.63560293,60789.0,60788.0,0.000818]
[1727989433049,0.63560293,60789.0,60782.0,0.001818]
[1727989433050,0.005,60784.0,60782.0,0.001818]
[1727989433288,0.63795784,60783.0,60782.0,0.001818]
[1727989433521,0.72031762,60783.0,60782.0,0.001818]
[1727989433751,0.264549,60772.0,60769.0,0.24636408]
[1727989433985,0.28177989,60772.0,60769.0,0.24636408]
[1727989434224,0.28177989,60772.0,60762.0,0.24636408]
[1727989434686,0.28177989,60772.0,60762.0,0.0789]
[1727989435163,0.3806341,60772.0,60762.0,0.0789]
[1727989435387,0.30757904,60772.0,60763.0,0.164573]
[1727989435625,0.30757904,60772.0,60762.0,0.243476]
[1727989435883,0.30743422,60772.0,60762.0,0.243476]
[1727989436135,0.31943422,60772.0,60762.0,0.243476]
[1727989436377,0.31943422,60772.0,60764.0,0.16457]
[1727989436628,0.31943422,60772.0,60762.0,0.408051]
[1727989436629,0.30743422,60772.0,60769.0,0.0906]
[1727989437091,0.31743422,60772.0,60769.0,0.0906]
[1727989437322,0.67353495,60772.0,60769.0,0.0906]
[1727989437553,0.164565,60766.0,60762.0,0.1739]
[1727989437788,0.18165107,60766.0,60762.0,0.1739]
[1727989438784,0.18164434,60766.0,60762.0,0.1739]
[1727989439708,0.18564434,60766.0,60762.0,0.1739]
[1727989440176,0.18664434,60766.0,60762.0,0.1739]
[1727989440618,0.18564434,60766.0,60762.0,0.1739]
[1727989440847,0.18864434,60766.0,60762.0,0.1739]
[1727989441312,0.18864434,60766.0,60762.0,0.338476]
[1727989441549,0.18864434,60766.0,60762.0,0.334294]
[1727989441770,0.01707934,60765.0,60763.0,0.164573]
[1727989441990,0.01707934,60765.0,60763.0,0.164572]
[1727989442488,0.01707934,60765.0,60762.0,0.169718]
[1727989442705,0.01707934,60765.0,60764.0,0.164571]
[1727989443594,0.003,60765.0,60764.0,0.164571]
[1727989444257,0.003,60766.0,60764.0,0.164571]
[1727989444707,0.003,60766.0,60764.0,0.16457]
[1727989444956,0.32912,60769.0,60763.0,0.00082]
[1727989444957,0.164571,60764.0,60763.0,0.00082]
[1727989445236,0.18162831,60764.0,60763.0,0.00082]
[1727989445709,0.20742709,60764.0,60763.0,0.00082]
[1727989446637,0.18162831,60764.0,60763.0,0.00082]
[1727989448052,0.164571,60764.0,60763.0,0.00082]
[1727989448301,0.1816201,60764.0,60763.0,0.00082]
[1727989449948,0.20741892,60764.0,60763.0,0.00082]
[1727989450893,0.1816201,60764.0,60763.0,0.00082]
[1727989453769,0.29852111,60764.0,60763.0,0.00082]
[1727989454011,0.1816201,60764.0,60763.0,0.00082]
[1727989454939,0.18175822,60764.0,60763.0,0.00082]
[1727989455636,0.20755725,60764.0,60763.0,0.00082]
[1727989456561,0.18175822,60764.0,60763.0,0.00082]
[1727989458195,0.18180813,60764.0,60763.0,0.00082]
[1727989458667,0.01723713,60764.0,60763.0,0.00082]
[1727989458931,0.01723713,60764.0,60763.0,0.165393]
[1727989459688,0.04303512,60764.0,60763.0,0.165393]
[1727989460148,0.04303512,60764.0,60763.0,0.00082]
[1727989460366,0.04303512,60764.0,60763.0,0.165393]
[1727989460609,0.04303512,60764.0,60763.0,0.00082]
[1727989460610,0.01723713,60764.0,60763.0,0.00082]
[1727989460861,0.23548054,60764.0,60763.0,0.00082]
[1727989461072,0.18180813,60764.0,60763.0,0.00082]
[1727989461273,0.18016241,60764.0,60763.0,0.00082]
[1727989461571,0.164568,60765.0,60763.0,0.00082]
[1727989461798,0.164571,60764.0,60763.0,0.00082]
[1727989462022,0.329134,60766.0,60763.0,0.00082]
[1727989462265,0.164569,60765.0,60763.0,0.00082]
[1727989462498,0.164571,60764.0,60763.0,0.00082]
[1727989462766,0.164569,60765.0,60763.0,0.00082]
[1727989463009,0.165569,60765.0,60763.0,0.00082]
[1727989463506,0.164571,60764.0,60763.0,0.00082]
[1727989463747,0.165569,60765.0,60763.0,0.00082]
[1727989464017,0.164571,60764.0,60763.0,0.00082]
[1727989464226,0.165569,60765.0,60763.0,0.00082]
[1727989465165,0.19136724,60765.0,60763.0,0.00082]
[1727989465652,0.164571,60764.0,60763.0,0.00182]
[1727989466127,0.164571,60764.0,60763.0,0.00082]
[1727989467262,0.164571,60764.0,60763.0,0.00182]
[1727989470614,0.21319405,60764.0,60763.0,0.00182]
[1727989470846,0.21483405,60764.0,60763.0,0.00182]
[1727989471563,0.49223158,60764.0,60763.0,0.00182]
[1727989472025,0.51803103,60764.0,60763.0,0.00182]
[1727989472741,0.42078493,60764.0,60763.0,0.00182]
[1727989473221,0.43811822,60764.0,60763.0,0.00182]
[1727989473694,0.43837982,60764.0,60763.0,0.00182]
[1727989474934,0.41258525,60764.0,60763.0,0.00182]
[1727989475419,0.39524708,60764.0,60763.0,0.00182]
[1727989475648,0.4125935,60764.0,60763.0,0.00182]
[1727989477777,0.43839237,60764.0,60763.0,0.00182]
[1727989478235,0.42104595,60764.0,60763.0,0.00182]
[1727989478482,0.43863991,60764.0,60763.0,0.00182]
[1727989482143,0.27406891,60764.0,60763.0,0.17642]
[1727989483719,0.27406891,60764.0,60763.0,0.340993]
[1727989485786,0.27406891,60764.0,60763.0,0.17642]
[1727989486002,0.27406891,60764.0,60763.0,0.340993]
[1727989486241,0.27406891,60764.0,60763.0,0.17642]
[1727989487210,0.27406891,60764.0,60763.0,0.340993]
[1727989487425,0.24827004,60764.0,60763.0,0.340993]
[1727989487676,0.41284104,60764.0,60763.0,0.17642]
[1727989487930,0.23123609,60764.0,60763.0,0.17642]
[1727989488152,0.41320317,60764.0,60763.0,0.17642]
[1727989488380,0.56005904,60764.0,60763.0,0.17642]
[1727989489268,0.41320317,60764.0,60763.0,0.17642]
[1727989491298,0.23123609,60764.0,60763.0,0.17642]
[1727989491535,0.41319395,60764.0,60763.0,0.17642]
[1727989492222,0.24862295,60764.0,60763.0,0.17642]
[1727989492427,0.24862295,60764.0,60763.0,0.340993]
[1727989493936,0.1414396,60764.0,60763.0,0.363993]
[1727989494178,0.01902686,60764.0,60763.0,0.363993]
[1727989494432,0.01900476,60764.0,60763.0,0.363993]
[1727989494948,0.01900476,60764.0,60763.0,0.362993]
[1727989495190,0.01900476,60764.0,60763.0,0.339993]
[1727989495407,0.01900476,60764.0,60763.0,0.340993]
[1727989495408,0.02000476,60764.0,60763.0,0.340993]
[1727989495656,0.06895586,60764.0,60763.0,0.340993]
[1727989495890,0.06894211,60764.0,60763.0,0.340993]
[1727989496133,0.02100476,60764.0,60763.0,0.340993]
[1727989496368,0.06793664,60764.0,60763.0,0.339993]
[1727989496814,0.06993664,60764.0,60763.0,0.340993]
[1727989497044,0.02100476,60764.0,60763.0,0.340993]
[1727989503034,0.02093455,60764.0,60763.0,0.340993]
[1727989503479,0.00364,60764.0,60763.0,0.340993]
[1727989503697,0.02093177,60764.0,60763.0,0.340993]
[1727989504829,0.0698402,60764.0,60763.0,0.340993]
[1727989505056,0.0698402,60764.0,60763.0,0.17642]
[1727989505294,0.0698402,60764.0,60763.0,0.340993]
[1727989506697,0.2344112,60764.0,60763.0,0.00182]
[1727989506967,0.27011077,60764.0,60763.0,0.00182]
[1727989507215,0.41493561,60764.0,60763.0,0.00182]
[1727989507935,0.5616609,60764.0,60763.0,0.00182]
[1727989508171,0.56156737,60764.0,60763.0,0.00182]
[1727989508401,0.41493561,60764.0,60763.0,0.00182]
[1727989508618,0.56156737,60764.0,60763.0,0.00182]
[1727989508838,0.329157,60762.0,60756.0,0.142431]
[1727989509062,0.07331204,60757.0,60754.0,0.329194]
[1727989509291,0.04887393,60755.0,60754.0,0.493792]
[1727989509516,0.0661657,60755.0,60754.0,0.493792]
[1727989510236,0.09196648,60755.0,60752.0,0.0971]
[1727989510475,0.01729177,60754.0,60752.0,0.0971]
[1727989510713,0.01729177,60753.0,60752.0,0.0971]
[1727989511200,0.04539376,60753.0,60752.0,0.0971]
[1727989511664,0.04539376,60753.0,60752.0,0.0981]
[1727989511896,0.04539376,60753.0,60752.0,0.262703]
[1727989512130,0.01729177,60753.0,60752.0,0.262703]
[1727989512578,0.01729177,60753.0,60752.0,0.261703]
[1727989512819,0.07331204,60754.0,60752.0,0.261703]
[1727989513074,0.01847479,60753.0,60752.0,0.261703]
[1727989513318,0.06729476,60753.0,60752.0,0.261703]
[1727989513750,0.06629476,60753.0,60752.0,0.261703]
[1727989513987,0.06729476,60753.0,60752.0,0.262703]
[1727989514905,0.06729476,60753.0,60752.0,0.0981]
[1727989515656,0.06829476,60753.0,60752.0,0.0981]
[1727989515874,0.06829476,60753.0,60752.0,0.262703]
[1727989516098,0.06829476,60753.0,60752.0,0.0981]
[1727989516345,0.06827149,60753.0,60752.0,0.0981]
[1727989517038,0.06827149,60753.0,60752.0,0.098918]
[1727989517276,0.0194287,60753.0,60752.0,0.098918]
[1727989517505,0.1840287,60753.0,60752.0,0.098918]
[1727989517724,0.25674469,60753.0,60752.0,0.098918]
[1727989517944,0.42127558,60753.0,60752.0,0.098918]
[1727989518166,0.28306197,60753.0,60752.0,0.098918]
[1727989518405,0.20983056,60753.0,60752.0,0.098918]
[1727989519095,0.1840287,60753.0,60752.0,0.098918]
[1727989519322,0.25725043,60753.0,60752.0,0.098918]
[1727989519609,0.23982173,60753.0,60752.0,0.098918]
[1727989519851,0.25622082,60753.0,60752.0,0.098918]
[1727989520084,0.25622082,60753.0,60752.0,0.097918]
[1727989520085,0.18299909,60753.0,60752.0,0.097918]
[1727989520325,0.41177363,60753.0,60752.0,0.098918]
[1727989520555,0.41180239,60753.0,60752.0,0.098918]
[1727989520834,0.18299909,60753.0,60752.0,0.097918]
[1727989521087,0.64062739,60753.0,60752.0,0.001818]
[1727989521337,0.63962739,60753.0,60752.0,0.001818]
[1727989521806,0.74062739,60753.0,60752.0,0.001818]
[1727989522031,0.74062739,60753.0,60752.0,0.000818]
[1727989522032,0.73962739,60753.0,60752.0,0.000818]
[1727989522259,0.76543286,60753.0,60752.0,0.000818]
[1727989522476,0.76443286,60753.0,60752.0,0.000818]
[1727989522694,0.76643286,60753.0,60752.0,0.000818]
[1727989522926,0.76443286,60753.0,60752.0,0.000818]
[1727989523624,0.51388286,60753.0,60752.0,0.000818]
[1727989523628,0.51308698,60753.0,60752.0,0.000818]
[1727989523844,0.51308698,60753.0,60752.0,0.001818]
[1727989524081,0.28607816,60753.0,60752.0,0.001818]
[1727989524326,0.43603445,60753.0,60752.0,0.000818]
[1727989524548,0.66227817,60753.0,60752.0,0.000818]
[1727989524996,0.66527817,60753.0,60752.0,0.000818]
[1727989525245,0.68937401,60753.0,60752.0,0.000818]
[1727989525494,0.69537401,60753.0,60752.0,0.000818]
[1727989525717,0.3837776,60753.0,60752.0,0.097818]
[1727989526091,0.15053388,60753.0,60752.0,0.097818]
[1727989526249,0.31913388,60753.0,60752.0,0.097818]
[1727989526470,0.4324722,60753.0,60752.0,0.000818]
[1727989526699,0.48122976,60753.0,60752.0,0.000818]
[1727989527387,0.47622976,60753.0,60752.0,0.000818]
[1727989527603,0.0691335,60753.0,60752.0,0.165421]
[1727989527848,0.02637594,60753.0,60752.0,0.000818]
[1727989528077,0.02637594,60753.0,60752.0,0.165421]
[1727989528078,0.0721335,60753.0,60752.0,0.165421]
[1727989528314,0.02437594,60753.0,60752.0,0.165421]
[1727989528551,0.01837594,60753.0,60752.0,0.165421]
[1727989528790,0.01737594,60753.0,60752.0,0.165421]
[1727989529010,0.02037594,60753.0,60752.0,0.166421]
[1727989529229,0.01737594,60753.0,60752.0,0.166421]
[1727989529654,0.01737594,60753.0,60752.0,0.003818]
[1727989529925,0.23227672,60753.0,60752.0,0.003818]
[1727989530170,0.30541289,60753.0,60752.0,0.003818]
[1727989530389,0.55697927,60753.0,60752.0,0.003818]
[1727989530606,0.45947015,60753.0,60752.0,0.003818]
[1727989530823,0.58137072,60753.0,60752.0,0.002818]
[1727989531049,0.58137072,60753.0,60752.0,0.001818]
[1727989531344,0.45947015,60753.0,60752.0,0.001818]
[1727989531558,0.55695321,60753.0,60752.0,0.001818]
[1727989532205,0.23227672,60753.0,60752.0,0.001818]
[1727989532685,0.55678812,60753.0,60752.0,0.001818]
[1727989532914,0.55678529,60753.0,60752.0,0.001818]
[1727989533162,0.53940935,60753.0,60752.0,0.001818]
[1727989533406,0.55680269,60753.0,60752.0,0.001818]
[1727989534337,0.58260805,60753.0,60752.0,0.001818]
[1727989536642,0.55680548,60753.0,60752.0,0.001818]
[1727989537095,0.23229691,60753.0,60752.0,0.001818]
[1727989540280,0.45921586,60753.0,60752.0,0.001818]
[1727989541167,0.55665114,60753.0,60752.0,0.001818]
[1727989543196,0.45921586,60753.0,60752.0,0.001818]
[1727989543406,0.44181973,60753.0,60752.0,0.001818]
[1727989543617,0.45923897,60753.0,60752.0,0.001818]
[1727989543876,0.55673316,60753.0,60752.0,0.001818]
[1727989544076,0.58253845,60753.0,60752.0,0.001818]
[1727989544300,0.48505033,60753.0,60752.0,0.001818]
[1727989544740,0.55663459,60753.0,60752.0,0.001818]
[1727989544967,0.43474955,60753.0,60752.0,0.001818]
[1727989545193,0.5308293,60753.0,60752.0,0.001818]
[1727989546324,0.53109588,60753.0,60752.0,0.001818]
[1727989546833,0.51367057,60753.0,60752.0,0.001818]
[1727989547054,0.53111462,60753.0,60752.0,0.001818]
[1727989547289,0.40920321,60753.0,60752.0,0.001818]
[1727989547939,0.53110478,60753.0,60752.0,0.001818]
[1727989548798,0.40920321,60753.0,60752.0,0.001818]
[1727989549985,0.39175916,60753.0,60752.0,0.001818]
[1727989550228,0.40921771,60753.0,60752.0,0.001818]
[1727989550893,0.40943163,60753.0,60752.0,0.001818]
[1727989552245,0.50943163,60753.0,60752.0,0.001818]
[1727989552455,0.81904119,60753.0,60752.0,0.001818]
[1727989552686,0.72112404,60753.0,60752.0,0.001818]
[1727989552920,0.74693002,60753.0,60752.0,0.001818]
[1727989553160,0.74693002,60753.0,60752.0,0.000818]
[1727989553663,0.74993002,60753.0,60752.0,0.000818]
[1727989553886,0.73011221,60753.0,60752.0,0.000818]
[1727989554133,0.72711221,60753.0,60752.0,0.000818]
[1727989554345,0.73211221,60753.0,60752.0,0.000818]
[1727989557319,0.164617,60747.0,60746.0,0.0161404]
[1727989557535,0.55601327,60747.0,60746.0,0.0161404]
[1727989558239,0.4094368,60747.0,60746.0,0.0161404]
[1727989558467,0.43524353,60747.0,60746.0,0.0161404]
[1727989559418,0.43524353,60747.0,60746.0,0.0171404]
[1727989559640,0.43524353,60747.0,60746.0,0.1154404]
[1727989560758,0.43524353,60747.0,60746.0,0.1963404]
[1727989560969,0.55743427,60747.0,60746.0,0.1963404]
[1727989561242,0.27062653,60747.0,60746.0,0.3609594]
[1727989561468,0.04889168,60751.0,60750.0,0.187609]
[1727989561725,8.191e-05,60753.0,60752.0,0.187603]
[1727989561963,8.191e-05,60753.0,60752.0,0.366803]
[1727989562933,8.191e-05,60753.0,60752.0,0.367803]
[1727989562934,0.00108191,60753.0,60752.0,0.367803]
[1727989563150,0.001636,60756.0,60755.0,0.164595]
[1727989563374,0.001636,60756.0,60755.0,0.359495]
[1727989563610,0.001636,60756.0,60755.0,0.52268171]
[1727989563838,0.24636408,60763.0,60762.0,0.359476]
[1727989564330,0.00164,60764.0,60763.0,0.359473]
[1727989565939,0.0284378,60764.0,60763.0,0.365473]
[1727989566389,0.00264,60764.0,60763.0,0.365473]
[1727989566602,0.00364,60764.0,60763.0,0.371473]
[1727989568173,0.002,60772.0,60771.0,0.164552]
[1727989568437,0.002,60772.0,60771.0,0.336452]
[1727989569105,0.02779357,60772.0,60771.0,0.336452]
[1727989569323,0.02779357,60772.0,60771.0,0.339452]
[1727989569531,0.02779357,60772.0,60771.0,0.343452]
[1727989569976,0.02779357,60772.0,60771.0,0.366452]
[1727989571157,0.02779357,60772.0,60771.0,0.362452]